[Event "*** SCC Grand Prix: Titled Tuesday Blitz"]
[Site "Chess.com"]
[Date "2020.06.09"]
[Round "8"]
[White "Enriquack"]
[Black "AGW2016"]
[Result "1-0"]
[WhiteElo "2412"]
[BlackElo "2258"]
[TimeControl "180+1"]
[EndTime "10:34:40 PDT"]
[Termination "Enriquack won by resignation"]

1. e4 {[%clk 0:03:00.9]} 1... c5 {[%clk 0:02:59.4]} 2. Nf3 {[%clk 0:03:00.9]}
2... d6 {[%clk 0:02:57.7]} 3. d4 {[%clk 0:03:00.8]} 3... cxd4 {[%clk 0:02:58.3]}
4. Nxd4 {[%clk 0:03:01.7]} 4... Nf6 {[%clk 0:02:58.8]} 5. Nc3 {[%clk 0:03:02.1]}
5... Nc6 {[%clk 0:02:58.2]} 6. Bc4 {[%clk 0:03:01.3]} 6... e6 {[%clk 0:02:58.1]}
7. Be3 {[%clk 0:03:01.5]} 7... Be7 {[%clk 0:02:52]} 8. Qe2 {[%clk 0:03:00.1]}
8... O-O {[%clk 0:02:51.5]} 9. O-O-O {[%clk 0:02:56.4]} 9... a6 {[%clk
0:02:50.2]} 10. Rhg1 {[%clk 0:02:46.6]} 10... Bd7 {[%clk 0:02:47.4]} 11. g4
{[%clk 0:02:38.6]} 11... Nxd4 {[%clk 0:02:44.4]} 12. Bxd4 {[%clk 0:02:34.3]}
12... b5 {[%clk 0:02:44.3]} 13. Bb3 {[%clk 0:02:31.4]} 13... b4 {[%clk
0:02:40.8]} 14. Na4 {[%clk 0:02:21.6]} 14... Bc6 {[%clk 0:02:38.4]} 15. f3
{[%clk 0:02:07.2]} 15... Nd7 {[%clk 0:02:31.4]} 16. Qf2 {[%clk 0:01:52.6]} 16...
Rb8 {[%clk 0:02:08.5]} 17. e5 {[%clk 0:01:43.6]} 17... d5 {[%clk 0:01:39.4]} 18.
Nc5 {[%clk 0:01:29.2]} 18... Nxc5 {[%clk 0:01:13.9]} 19. Bxc5 {[%clk 0:01:29.4]}
19... Bxc5 {[%clk 0:01:14.5]} 20. Qxc5 {[%clk 0:01:30]} 20... Rc8 {[%clk
0:01:15.2]} 21. Qxb4 {[%clk 0:01:26.9]} 21... a5 {[%clk 0:01:15.5]} 22. Qd4
{[%clk 0:01:25.2]} 22... Qd7 {[%clk 0:01:14.9]} 23. c3 {[%clk 0:01:12.6]} 23...
a4 {[%clk 0:01:11]} 24. Bc2 {[%clk 0:01:12.9]} 24... a3 {[%clk 0:01:11.7]} 25.
b3 {[%clk 0:01:13]} 25... Bb5 {[%clk 0:01:10.6]} 26. f4 {[%clk 0:01:12.4]} 26...
Qc6 {[%clk 0:01:07.2]} 27. Rg3 {[%clk 0:01:11.7]} 27... Qc5 {[%clk 0:01:03.4]}
28. Qxc5 {[%clk 0:01:06.6]} 28... Rxc5 {[%clk 0:01:03.3]} 29. Rd4 {[%clk
0:01:07.4]} 29... Rfc8 {[%clk 0:01:03.2]} 30. Kd2 {[%clk 0:01:08.1]} 30... f6
{[%clk 0:00:59.7]} 31. exf6 {[%clk 0:00:49.4]} 31... gxf6 {[%clk 0:00:59.8]} 32.
Rh3 {[%clk 0:00:46.3]} 32... R8c7 {[%clk 0:00:59.1]} 33. g5 {[%clk 0:00:41.8]}
33... e5 {[%clk 0:00:59.3]} 34. Rb4 {[%clk 0:00:39.3]} 34... d4 {[%clk
0:00:57.7]} 35. gxf6 {[%clk 0:00:36.9]} 35... dxc3+ {[%clk 0:00:57.5]} 36. Ke3
{[%clk 0:00:34.9]} 36... exf4+ {[%clk 0:00:56.6]} 37. Kxf4 {[%clk 0:00:35.2]}
37... Kf7 {[%clk 0:00:38.9]} 38. Rxh7+ {[%clk 0:00:35]} 38... Kxf6 {[%clk
0:00:39.1]} 39. Rxc7 {[%clk 0:00:35.7]} 39... Rxc7 {[%clk 0:00:39.5]} 40. Rxb5
{[%clk 0:00:36.2]} 40... Rh7 {[%clk 0:00:40]} 41. Bxh7 {[%clk 0:00:35]} 1-0

[Event "*** SCC Grand Prix: Titled Tuesday Blitz"]
[Site "Chess.com"]
[Date "2020.06.09"]
[Round "8"]
[White "Vaathi_Coming"]
[Black "topotun"]
[Result "1-0"]
[WhiteElo "2836"]
[BlackElo "2609"]
[TimeControl "180+1"]
[EndTime "10:34:41 PDT"]
[Termination "Vaathi_Coming won by resignation"]

1. e4 {[%clk 0:03:00.9]} 1... c5 {[%clk 0:03:00.1]} 2. Nf3 {[%clk 0:03:00.6]}
2... e6 {[%clk 0:03:00.5]} 3. d4 {[%clk 0:03:00.7]} 3... cxd4 {[%clk 0:03:01.4]}
4. Nxd4 {[%clk 0:03:01.6]} 4... Nc6 {[%clk 0:03:02]} 5. Nc3 {[%clk 0:03:02]}
5... Qc7 {[%clk 0:03:02.4]} 6. Be3 {[%clk 0:03:02.2]} 6... a6 {[%clk 0:03:02.4]}
7. Qf3 {[%clk 0:03:02.7]} 7... Nf6 {[%clk 0:03:02.4]} 8. O-O-O {[%clk
0:03:02.5]} 8... Nxd4 {[%clk 0:03:02.6]} 9. Bxd4 {[%clk 0:03:02.4]} 9... e5
{[%clk 0:03:02.9]} 10. Qg3 {[%clk 0:03:00.2]} 10... d6 {[%clk 0:03:02.9]} 11.
Be3 {[%clk 0:03:00.3]} 11... b5 {[%clk 0:03:03.2]} 12. a3 {[%clk 0:02:55.4]}
12... Be6 {[%clk 0:02:58.8]} 13. Be2 {[%clk 0:02:46.2]} 13... Rb8 {[%clk
0:02:53.7]} 14. f4 {[%clk 0:02:44.4]} 14... b4 {[%clk 0:02:19.7]} 15. axb4
{[%clk 0:02:39.4]} 15... Rxb4 {[%clk 0:02:20.6]} 16. Rhf1 {[%clk 0:02:14.9]}
16... Qa5 {[%clk 0:01:56.9]} 17. Bd3 {[%clk 0:01:39.5]} 17... Rxb2 {[%clk
0:01:18.9]} 18. Kxb2 {[%clk 0:01:31.2]} 18... Qb4+ {[%clk 0:01:19.1]} 19. Kc1
{[%clk 0:01:31.6]} 19... Qxc3 {[%clk 0:01:19.5]} 20. Qe1 {[%clk 0:01:19.6]}
20... Qa3+ {[%clk 0:01:11.7]} 21. Kd2 {[%clk 0:01:19.9]} 21... d5 {[%clk
0:01:12.6]} 22. Ra1 {[%clk 0:01:13.6]} 22... Qb4+ {[%clk 0:00:58.3]} 23. Ke2
{[%clk 0:01:13.8]} 23... dxe4 {[%clk 0:00:58.8]} 24. Bxa6 {[%clk 0:01:09.6]}
24... Bc4+ {[%clk 0:00:54.2]} 25. Kf2 {[%clk 0:01:00.3]} 25... Ng4+ {[%clk
0:00:51]} 26. Kg3 {[%clk 0:01:00.3]} 26... Nxe3 {[%clk 0:00:44.8]} 27. Qxe3
{[%clk 0:00:53.7]} 27... exf4+ {[%clk 0:00:44.1]} 28. Rxf4 {[%clk 0:00:51.7]}
28... Bxa6 {[%clk 0:00:16.3]} 29. Rxe4+ {[%clk 0:00:49.5]} 1-0

[Event "*** SCC Grand Prix: Titled Tuesday Blitz"]
[Site "Chess.com"]
[Date "2020.06.09"]
[Round "8"]
[White "Lenyas66"]
[Black "Fh2411"]
[Result "1-0"]
[WhiteElo "2578"]
[BlackElo "2445"]
[TimeControl "180+1"]
[EndTime "10:34:42 PDT"]
[Termination "Lenyas66 won on time"]

1. e4 {[%clk 0:03:00.9]} 1... c5 {[%clk 0:01:46.3]} 2. Nf3 {[%clk 0:03:00.7]}
2... e6 {[%clk 0:01:46.3]} 3. d4 {[%clk 0:02:58.9]} 3... cxd4 {[%clk 0:01:46.4]}
4. Nxd4 {[%clk 0:02:59.1]} 4... a6 {[%clk 0:01:46.6]} 5. c4 {[%clk 0:02:58.2]}
5... Nf6 {[%clk 0:01:44.9]} 6. Nc3 {[%clk 0:02:58.3]} 6... Bb4 {[%clk
0:01:39.3]} 7. Qd3 {[%clk 0:02:58.3]} 7... Qc7 {[%clk 0:01:38.7]} 8. Bg5 {[%clk
0:02:39.1]} 8... Qe5 {[%clk 0:01:28.5]} 9. Bxf6 {[%clk 0:02:18.7]} 9... Bxc3+
{[%clk 0:01:27.4]} 10. Qxc3 {[%clk 0:02:08.7]} 10... Qxe4+ {[%clk 0:01:26.7]}
11. Be2 {[%clk 0:02:08.6]} 11... gxf6 {[%clk 0:01:26]} 12. O-O {[%clk
0:02:08.3]} 12... Nc6 {[%clk 0:01:01.5]} 13. Nxc6 {[%clk 0:02:05.3]} 13... dxc6
{[%clk 0:00:47.8]} 14. Qxf6 {[%clk 0:02:01.7]} 14... Rg8 {[%clk 0:00:48.3]} 15.
Bf3 {[%clk 0:01:59.6]} 15... Qf5 {[%clk 0:00:44.5]} 16. Qc3 {[%clk 0:01:54]}
16... e5 {[%clk 0:00:37.2]} 17. Rfe1 {[%clk 0:01:53.2]} 17... f6 {[%clk
0:00:37.4]} 18. Rad1 {[%clk 0:01:39.7]} 18... Be6 {[%clk 0:00:35.6]} 19. Rd6
{[%clk 0:01:32]} 19... Rd8 {[%clk 0:00:31.8]} 20. Rxd8+ {[%clk 0:01:30.7]} 20...
Kxd8 {[%clk 0:00:32.7]} 21. Be4 {[%clk 0:01:26]} 21... Qg5 {[%clk 0:00:29.7]}
22. g3 {[%clk 0:01:26.1]} 22... Rg7 {[%clk 0:00:28]} 23. Qb4 {[%clk 0:01:22.2]}
23... Rd7 {[%clk 0:00:21.4]} 24. Qb6+ {[%clk 0:01:20.3]} 24... Kc8 {[%clk
0:00:20.5]} 25. Bxc6 {[%clk 0:01:20.5]} 25... bxc6 {[%clk 0:00:10.8]} 26. Qxc6+
{[%clk 0:01:20.3]} 26... Kd8 {[%clk 0:00:08.2]} 27. Qxe6 {[%clk 0:01:20.1]}
27... a5 {[%clk 0:00:08.7]} 28. c5 {[%clk 0:01:17.8]} 28... Qd2 {[%clk
0:00:07.8]} 29. Rf1 {[%clk 0:01:15.8]} 29... Qd5 {[%clk 0:00:03.4]} 30. Qxf6+
{[%clk 0:01:15.5]} 30... Kc8 {[%clk 0:00:03.8]} 31. Qb6 {[%clk 0:01:13.7]} 31...
Rc7 {[%clk 0:00:03.1]} 32. Rc1 {[%clk 0:01:11.4]} 32... Qd2 {[%clk 0:00:01.9]}
33. Qa6+ {[%clk 0:01:02.8]} 33... Kb8 {[%clk 0:00:01.9]} 34. Qc4 {[%clk
0:01:02.4]} 1-0

[Event "*** SCC Grand Prix: Titled Tuesday Blitz"]
[Site "Chess.com"]
[Date "2020.06.09"]
[Round "8"]
[White "PowerThinking2650"]
[Black "MateSchmate"]
[Result "0-1"]
[WhiteElo "2326"]
[BlackElo "2436"]
[TimeControl "180+1"]
[EndTime "10:34:42 PDT"]
[Termination "MateSchmate won on time"]

1. e4 {[%clk 0:03:00.9]} 1... e6 {[%clk 0:03:00.2]} 2. d4 {[%clk 0:03:00.1]}
2... d5 {[%clk 0:03:01.1]} 3. Nd2 {[%clk 0:03:00.4]} 3... a6 {[%clk 0:02:59.5]}
4. Ngf3 {[%clk 0:02:48.3]} 4... Nf6 {[%clk 0:02:58.4]} 5. e5 {[%clk 0:02:47.7]}
5... Nfd7 {[%clk 0:02:58.7]} 6. Bd3 {[%clk 0:02:46.1]} 6... c5 {[%clk
0:02:59.6]} 7. c3 {[%clk 0:02:46.1]} 7... Nc6 {[%clk 0:03:00.5]} 8. O-O {[%clk
0:02:44.9]} 8... g5 {[%clk 0:03:01]} 9. g4 {[%clk 0:02:39.6]} 9... h5 {[%clk
0:03:00.5]} 10. h3 {[%clk 0:02:39.7]} 10... hxg4 {[%clk 0:03:00.3]} 11. hxg4
{[%clk 0:02:39.3]} 11... Qb6 {[%clk 0:02:54.4]} 12. dxc5 {[%clk 0:01:24.7]}
12... Bxc5 {[%clk 0:02:51.2]} 13. Qe2 {[%clk 0:01:14.4]} 13... Qc7 {[%clk
0:02:47.7]} 14. Re1 {[%clk 0:01:12]} 14... Ba7 {[%clk 0:02:41.9]} 15. Kg2 {[%clk
0:01:10.8]} 15... Bb8 {[%clk 0:02:41.7]} 16. c4 {[%clk 0:01:00.5]} 16... Ndxe5
{[%clk 0:02:31]} 17. cxd5 {[%clk 0:00:51.8]} 17... Nxf3 {[%clk 0:02:30.6]} 18.
Nxf3 {[%clk 0:00:47.6]} 18... Nd4 {[%clk 0:02:30.6]} 19. Qe5 {[%clk 0:00:26.8]}
19... Qxe5 {[%clk 0:01:40.9]} 20. Nxe5 {[%clk 0:00:27.7]} 20... f6 {[%clk
0:01:39.2]} 21. Ng6 {[%clk 0:00:14.8]} 21... Rh2+ {[%clk 0:01:37.4]} 22. Kf1
{[%clk 0:00:13.7]} 22... Kf7 {[%clk 0:01:37.2]} 23. Be3 {[%clk 0:00:12.1]} 23...
Nf3 {[%clk 0:01:36.7]} 24. dxe6+ {[%clk 0:00:10.4]} 24... Bxe6 {[%clk
0:01:36.2]} 25. Bd4 {[%clk 0:00:09.8]} 25... Nxd4 {[%clk 0:01:32.3]} 26. Rac1
{[%clk 0:00:08.9]} 26... Bxg4 {[%clk 0:01:31.5]} 27. Re7+ {[%clk 0:00:05.6]}
27... Kg8 {[%clk 0:01:27.9]} 28. Re8+ {[%clk 0:00:05.9]} 28... Kg7 {[%clk
0:01:24.6]} 29. Re7+ {[%clk 0:00:06]} 29... Kh6 {[%clk 0:01:24.2]} 30. Ne5
{[%clk 0:00:02.6]} 30... Bf5 {[%clk 0:01:13.2]} 31. Bxf5 {[%clk 0:00:01.9]}
31... Nxf5 {[%clk 0:01:10.2]} 32. Ng4+ {[%clk 0:00:01.9]} 32... Kg6 {[%clk
0:01:11.1]} 33. Nxh2 {[%clk 0:00:02.3]} 33... Bxh2 {[%clk 0:01:11.9]} 34. Rcc7
{[%clk 0:00:01.9]} 34... Bxc7 {[%clk 0:01:11.6]} 35. Rxc7 {[%clk 0:00:02.6]}
35... b5 {[%clk 0:01:11]} 36. Rc6 {[%clk 0:00:02.5]} 36... Nd4 {[%clk
0:01:11.2]} 37. Rd6 {[%clk 0:00:01.9]} 37... Nf3 {[%clk 0:01:10.7]} 38. Kg2
{[%clk 0:00:01.3]} 38... Ne5 {[%clk 0:01:11.6]} 0-1

[Event "*** SCC Grand Prix: Titled Tuesday Blitz"]
[Site "Chess.com"]
[Date "2020.06.09"]
[Round "8"]
[White "picturesquecheck"]
[Black "mjray79"]
[Result "0-1"]
[WhiteElo "2114"]
[BlackElo "2305"]
[TimeControl "180+1"]
[EndTime "10:34:44 PDT"]
[Termination "mjray79 won by resignation"]

1. e4 {[%clk 0:02:55.5]} 1... e5 {[%clk 0:02:59.8]} 2. Nf3 {[%clk 0:02:54.2]}
2... Nc6 {[%clk 0:03:00.3]} 3. Bc4 {[%clk 0:02:55.1]} 3... Bc5 {[%clk
0:02:59.5]} 4. c3 {[%clk 0:02:55.1]} 4... Nf6 {[%clk 0:02:59.7]} 5. O-O {[%clk
0:02:55.2]} 5... O-O {[%clk 0:02:59.1]} 6. d4 {[%clk 0:02:55.2]} 6... exd4
{[%clk 0:02:49.7]} 7. cxd4 {[%clk 0:02:56.1]} 7... Bb6 {[%clk 0:02:38.1]} 8. e5
{[%clk 0:02:56.1]} 8... Ne4 {[%clk 0:02:32.5]} 9. Re1 {[%clk 0:02:55.4]} 9... d5
{[%clk 0:02:30.2]} 10. Bd3 {[%clk 0:02:54.7]} 10... Bf5 {[%clk 0:02:23.8]} 11.
Be3 {[%clk 0:02:50.5]} 11... f6 {[%clk 0:02:22.7]} 12. exf6 {[%clk 0:02:49.7]}
12... Qxf6 {[%clk 0:02:22.5]} 13. Nc3 {[%clk 0:02:48.2]} 13... Rad8 {[%clk
0:02:18]} 14. Bxe4 {[%clk 0:02:25.5]} 14... dxe4 {[%clk 0:02:10.3]} 15. Qb3+
{[%clk 0:02:14.5]} 15... Kh8 {[%clk 0:01:48.6]} 16. Ng5 {[%clk 0:01:29.3]} 16...
Qg6 {[%clk 0:01:46.2]} 17. d5 {[%clk 0:01:18.5]} 17... Bxe3 {[%clk 0:01:32.9]}
18. fxe3 {[%clk 0:01:17.6]} 18... Ne5 {[%clk 0:01:26.6]} 19. Ne6 {[%clk
0:00:46.8]} 19... Bxe6 {[%clk 0:01:24.1]} 20. dxe6 {[%clk 0:00:47.7]} 20... Nf3+
{[%clk 0:01:23.8]} 21. Kh1 {[%clk 0:00:44.6]} 21... Nxe1 {[%clk 0:01:23]} 22.
Rxe1 {[%clk 0:00:44.7]} 22... Rde8 {[%clk 0:01:18.4]} 23. Qxb7 {[%clk
0:00:31.2]} 23... Qxe6 {[%clk 0:01:15.5]} 24. Qxc7 {[%clk 0:00:28.7]} 24... Qf7
{[%clk 0:01:09.2]} 25. Qxf7 {[%clk 0:00:24.9]} 25... Rxf7 {[%clk 0:01:10.1]} 26.
Kg1 {[%clk 0:00:24.6]} 26... g6 {[%clk 0:01:04.7]} 27. h3 {[%clk 0:00:24.1]}
27... Kg7 {[%clk 0:01:04.1]} 28. Rd1 {[%clk 0:00:23.5]} 28... Rb7 {[%clk
0:01:03.1]} 29. b3 {[%clk 0:00:19.2]} 29... Rc7 {[%clk 0:01:01.4]} 30. Nd5
{[%clk 0:00:16.9]} 30... Rd7 {[%clk 0:01:01.2]} 31. Rd4 {[%clk 0:00:16.4]} 31...
Red8 {[%clk 0:00:58.6]} 32. Nc3 {[%clk 0:00:16.5]} 32... Rxd4 {[%clk 0:00:58.5]}
33. exd4 {[%clk 0:00:17.4]} 33... Rxd4 {[%clk 0:00:58.6]} 34. Kf2 {[%clk
0:00:18.3]} 34... Kf6 {[%clk 0:00:52.8]} 35. Ke3 {[%clk 0:00:18]} 35... Rd3+
{[%clk 0:00:52.5]} 0-1

[Event "*** SCC Grand Prix: Titled Tuesday Blitz"]
[Site "Chess.com"]
[Date "2020.06.09"]
[Round "8"]
[White "Caterpiller35"]
[Black "doctorcristian"]
[Result "0-1"]
[WhiteElo "2298"]
[BlackElo "2422"]
[TimeControl "180+1"]
[EndTime "10:34:55 PDT"]
[Termination "doctorcristian won by resignation"]

1. d4 {[%clk 0:02:59.3]} 1... Nf6 {[%clk 0:02:47.7]} 2. Bg5 {[%clk 0:02:57.9]}
2... Ne4 {[%clk 0:02:47]} 3. Bf4 {[%clk 0:02:57.9]} 3... d5 {[%clk 0:02:46.8]}
4. e3 {[%clk 0:02:58]} 4... Bf5 {[%clk 0:02:45.4]} 5. Bd3 {[%clk 0:02:44.5]}
5... e6 {[%clk 0:02:43.1]} 6. f3 {[%clk 0:02:38.8]} 6... Nd6 {[%clk 0:02:36.2]}
7. Nc3 {[%clk 0:02:29.6]} 7... Nc6 {[%clk 0:02:29.7]} 8. g4 {[%clk 0:02:25.5]}
8... Bxd3 {[%clk 0:02:26.8]} 9. Qxd3 {[%clk 0:02:26.4]} 9... Nc4 {[%clk
0:02:08.9]} 10. b3 {[%clk 0:02:22.1]} 10... Nb4 {[%clk 0:02:04.3]} 11. Qe2
{[%clk 0:02:12.3]} 11... Na3 {[%clk 0:02:04.1]} 12. O-O-O {[%clk 0:02:00.3]}
12... Nbxc2 {[%clk 0:01:47.6]} 13. Nb5 {[%clk 0:01:53.4]} 13... Bd6 {[%clk
0:01:42.1]} 14. Bxd6 {[%clk 0:01:40.3]} 14... cxd6 {[%clk 0:01:40.6]} 15. Kb2
{[%clk 0:01:40.1]} 15... Qa5 {[%clk 0:01:37.1]} 16. Nxd6+ {[%clk 0:01:39.1]}
16... Ke7 {[%clk 0:01:33.9]} 17. Nxb7 {[%clk 0:01:39.1]} 17... Qb4 {[%clk
0:00:58.4]} 18. Nc5 {[%clk 0:01:26.4]} 18... Nxe3 {[%clk 0:00:57.7]} 19. Rc1
{[%clk 0:01:05.8]} 19... Nac2 {[%clk 0:00:22]} 20. Rxc2 {[%clk 0:00:52.1]} 20...
Qxd4+ {[%clk 0:00:21.9]} 21. Kb1 {[%clk 0:00:40.5]} 21... Nxc2 {[%clk
0:00:19.6]} 22. Qxc2 {[%clk 0:00:41.4]} 22... Rhc8 {[%clk 0:00:18.3]} 23. b4
{[%clk 0:00:31.1]} 23... Qxb4+ {[%clk 0:00:17.9]} 0-1

[Event "*** SCC Grand Prix: Titled Tuesday Blitz"]
[Site "Chess.com"]
[Date "2020.06.09"]
[Round "8"]
[White "Evgeny_Ermakov1965"]
[Black "PavelShkapenko"]
[Result "1-0"]
[WhiteElo "2561"]
[BlackElo "2671"]
[TimeControl "180+1"]
[EndTime "10:34:57 PDT"]
[Termination "Evgeny_Ermakov1965 won by resignation"]

1. d4 {[%clk 0:03:00.9]} 1... Nf6 {[%clk 0:02:59.7]} 2. c4 {[%clk 0:03:01.1]}
2... e6 {[%clk 0:02:59.9]} 3. Nc3 {[%clk 0:03:00.7]} 3... Bb4 {[%clk 0:03:00.4]}
4. e3 {[%clk 0:02:59.8]} 4... c5 {[%clk 0:03:00.7]} 5. Ne2 {[%clk 0:02:57.8]}
5... cxd4 {[%clk 0:03:01]} 6. Nxd4 {[%clk 0:02:56.2]} 6... Nc6 {[%clk
0:02:59.2]} 7. Bd2 {[%clk 0:02:56.1]} 7... O-O {[%clk 0:02:54.3]} 8. Bd3 {[%clk
0:02:55.6]} 8... d5 {[%clk 0:02:54.5]} 9. cxd5 {[%clk 0:02:53.4]} 9... Nxd4
{[%clk 0:02:50.4]} 10. exd4 {[%clk 0:02:54.3]} 10... Nxd5 {[%clk 0:02:50.3]} 11.
O-O {[%clk 0:02:52.9]} 11... Be7 {[%clk 0:02:36.5]} 12. Ne4 {[%clk 0:02:48.9]}
12... Nb4 {[%clk 0:02:29.8]} 13. Bc3 {[%clk 0:02:41.3]} 13... Nxd3 {[%clk
0:02:28.9]} 14. Qxd3 {[%clk 0:02:42.2]} 14... Qd5 {[%clk 0:02:25]} 15. Qd2
{[%clk 0:02:40.4]} 15... Qxe4 {[%clk 0:02:24.3]} 16. Rfe1 {[%clk 0:02:28]} 16...
Qg6 {[%clk 0:02:14]} 17. Qf4 {[%clk 0:02:22.8]} 17... Bd7 {[%clk 0:01:51.8]} 18.
d5 {[%clk 0:02:20.3]} 18... Rfe8 {[%clk 0:01:37.2]} 19. Qc7 {[%clk 0:02:16.3]}
19... Rad8 {[%clk 0:01:24.6]} 20. Re3 {[%clk 0:02:12.8]} 20... e5 {[%clk
0:00:51.2]} 21. Bxe5 {[%clk 0:02:10.2]} 21... Bf6 {[%clk 0:00:51.3]} 22. Bxf6
{[%clk 0:02:08.4]} 22... Qxf6 {[%clk 0:00:51.5]} 23. Rxe8+ {[%clk 0:02:07.9]}
23... Bxe8 {[%clk 0:00:51.7]} 24. Qxb7 {[%clk 0:02:07.7]} 24... Qb6 {[%clk
0:00:51.2]} 25. Qxb6 {[%clk 0:02:05.9]} 25... axb6 {[%clk 0:00:51.1]} 26. Rd1
{[%clk 0:02:06.8]} 26... Kf8 {[%clk 0:00:48.2]} 27. d6 {[%clk 0:02:06.9]} 27...
Bc6 {[%clk 0:00:45.6]} 28. f4 {[%clk 0:02:04.8]} 28... Ke8 {[%clk 0:00:45.3]}
29. Re1+ {[%clk 0:02:02.4]} 29... Kf8 {[%clk 0:00:45.3]} 30. Rd1 {[%clk
0:02:00.9]} 30... Ra8 {[%clk 0:00:37.3]} 31. a3 {[%clk 0:01:58.4]} 31... Ra7
{[%clk 0:00:33.4]} 32. Rc1 {[%clk 0:01:55.9]} 32... Bd7 {[%clk 0:00:29.7]} 33.
Kf2 {[%clk 0:01:53.3]} 33... Ke8 {[%clk 0:00:30]} 34. Re1+ {[%clk 0:01:51]}
34... Kf8 {[%clk 0:00:26.3]} 35. Rc1 {[%clk 0:01:50.2]} 35... Rb7 {[%clk
0:00:26.6]} 36. Ke3 {[%clk 0:01:48.3]} 36... Ke8 {[%clk 0:00:26.8]} 37. Kd4
{[%clk 0:01:46.7]} 37... Kd8 {[%clk 0:00:27.3]} 38. g4 {[%clk 0:01:44.4]} 38...
Bxg4 {[%clk 0:00:27]} 39. Rg1 {[%clk 0:01:42.2]} 39... h5 {[%clk 0:00:27.1]} 40.
h3 {[%clk 0:01:42]} 40... Bxh3 {[%clk 0:00:27.3]} 41. Rxg7 {[%clk 0:01:41.6]}
41... Bg4 {[%clk 0:00:26.8]} 42. Rh7 {[%clk 0:01:40]} 42... Ke8 {[%clk
0:00:25.7]} 43. f5 {[%clk 0:01:39.8]} 43... Bxf5 {[%clk 0:00:24.8]} 44. Rxh5
{[%clk 0:01:38]} 44... Bg6 {[%clk 0:00:25]} 45. Re5+ {[%clk 0:01:35.5]} 45...
Kd7 {[%clk 0:00:24.7]} 46. Kd5 {[%clk 0:01:32.7]} 46... Bh5 {[%clk 0:00:21.4]}
47. Rxh5 {[%clk 0:01:30.2]} 47... Rb8 {[%clk 0:00:21.3]} 48. Re5 {[%clk
0:01:28.5]} 48... Rf8 {[%clk 0:00:20.8]} 49. Re7+ {[%clk 0:01:28.4]} 49... Kd8
{[%clk 0:00:21.4]} 50. Kc6 {[%clk 0:01:27.2]} 50... f5 {[%clk 0:00:21.6]} 51.
Ra7 {[%clk 0:01:22.7]} 51... Ke8 {[%clk 0:00:22]} 52. Ra8+ {[%clk 0:01:22.5]}
52... Kf7 {[%clk 0:00:22.2]} 53. Rxf8+ {[%clk 0:01:22.1]} 53... Kxf8 {[%clk
0:00:22.8]} 54. d7 {[%clk 0:01:22]} 1-0

[Event "*** SCC Grand Prix: Titled Tuesday Blitz"]
[Site "Chess.com"]
[Date "2020.06.09"]
[Round "8"]
[White "RaphCamora"]
[Black "stanyga"]
[Result "1-0"]
[WhiteElo "2494"]
[BlackElo "2639"]
[TimeControl "180+1"]
[EndTime "10:34:58 PDT"]
[Termination "RaphCamora won by resignation"]

1. Nf3 {[%clk 0:03:00.9]} 1... Nf6 {[%clk 0:02:59]} 2. c4 {[%clk 0:02:59.5]}
2... c5 {[%clk 0:02:53.9]} 3. g3 {[%clk 0:02:59.5]} 3... Nc6 {[%clk 0:02:49.3]}
4. Bg2 {[%clk 0:02:59.4]} 4... e5 {[%clk 0:02:48.2]} 5. O-O {[%clk 0:02:58.5]}
5... Be7 {[%clk 0:02:47.3]} 6. Nc3 {[%clk 0:02:58.5]} 6... O-O {[%clk 0:02:47]}
7. d3 {[%clk 0:02:59]} 7... d6 {[%clk 0:02:47.2]} 8. Ne1 {[%clk 0:02:58.7]} 8...
Rb8 {[%clk 0:02:46.7]} 9. Nc2 {[%clk 0:02:56.6]} 9... a6 {[%clk 0:02:46.2]} 10.
a4 {[%clk 0:02:55.6]} 10... Be6 {[%clk 0:02:41.8]} 11. Ne3 {[%clk 0:02:54.9]}
11... Nb4 {[%clk 0:02:41.8]} 12. Ncd5 {[%clk 0:02:52.2]} 12... Nfxd5 {[%clk
0:02:40.4]} 13. cxd5 {[%clk 0:02:50.5]} 13... Bd7 {[%clk 0:02:39.1]} 14. Bd2
{[%clk 0:02:49.7]} 14... a5 {[%clk 0:02:38]} 15. Nc4 {[%clk 0:02:47.6]} 15... b6
{[%clk 0:02:36.1]} 16. f4 {[%clk 0:02:46.5]} 16... exf4 {[%clk 0:02:32.5]} 17.
Bxf4 {[%clk 0:02:43.7]} 17... Bc8 {[%clk 0:02:15.2]} 18. Qd2 {[%clk 0:02:40.5]}
18... Ba6 {[%clk 0:02:14.1]} 19. Ne3 {[%clk 0:02:31.1]} 19... Qd7 {[%clk
0:02:08.8]} 20. h4 {[%clk 0:02:21.6]} 20... Rbe8 {[%clk 0:02:04]} 21. Kh2 {[%clk
0:02:20.4]} 21... f5 {[%clk 0:01:58.7]} 22. Rf2 {[%clk 0:02:19]} 22... Bf6
{[%clk 0:01:56.7]} 23. Raf1 {[%clk 0:02:06]} 23... Bd4 {[%clk 0:01:55.2]} 24. b3
{[%clk 0:02:05.9]} 24... Bb7 {[%clk 0:01:38.7]} 25. Bh3 {[%clk 0:01:19.6]} 25...
Bxe3 {[%clk 0:01:35.5]} 26. Bxe3 {[%clk 0:01:18]} 26... Nxd5 {[%clk 0:01:18.9]}
27. Bxf5 {[%clk 0:01:17.2]} 27... Rxf5 {[%clk 0:01:18.4]} 28. Rxf5 {[%clk
0:01:16.6]} 28... Nxe3 {[%clk 0:01:18.2]} 29. Qxe3 {[%clk 0:01:15.5]} 29... g6
{[%clk 0:01:13.4]} 30. Qg5 {[%clk 0:01:07.2]} 30... Rxe2+ {[%clk 0:01:12.8]} 31.
R5f2 {[%clk 0:01:07]} 31... Qe8 {[%clk 0:00:55.1]} 32. Qf6 {[%clk 0:00:56]}
32... Bd5 {[%clk 0:00:46.5]} 33. Rxe2 {[%clk 0:00:54.2]} 33... Qxe2+ {[%clk
0:00:45.8]} 34. Rf2 {[%clk 0:00:54.8]} 34... Qe8 {[%clk 0:00:38.9]} 35. Qxd6
{[%clk 0:00:52.5]} 35... Bf7 {[%clk 0:00:35.7]} 36. Qxb6 {[%clk 0:00:49.4]}
36... Qe3 {[%clk 0:00:32.1]} 37. Qd8+ {[%clk 0:00:47.4]} 37... Be8 {[%clk
0:00:31.5]} 38. Qf6 {[%clk 0:00:47.3]} 1-0